Cogmind - Beta 16 @@@ ROGUE MODE // 2025.10.30 @ 23:10:48 Player: Scringis Result: Self-destructed Performance ------------- Evolutions (1) 500 Regions Visited (2) 400 Robots Destroyed (15) 75 Value Destroyed (310) 310 Prototype IDs (0) 0 Alien Tech Used (0) 0 Bonus (0) 0 TOTAL SCORE: 1285 Bonus ------- None Cogmind --------- Core Integrity 273/400 Matter 15/300 Energy 100/100 System Corruption 0% Temperature Cool (25) Movement Walking (190) Ox1 Location -9/Materials Parts ------- > --- POWER (1) -------- (None) > --- PROPULSION (2) --- Aluminum Leg > --- UTILITY (2) ------ Small Storage Unit > --- WEAPON (4) ------- Assault Rifle Assault Rifle Light Assault Rifle Mini Grenade Launcher > --- INVENTORY (8) ---- Light Ion Engine Mini Grenade Launcher Peak State ------------ > --- POWER ------------ Ion Engine > --- PROPULSION ------- Aluminum Leg Aluminum Leg > --- UTILITY ---------- Small Storage Unit > --- WEAPON ----------- Assault Rifle Light Assault Rifle Light Assault Rifle Mini Grenade Launcher > --- INVENTORY -------- Light Ion Engine Mini Grenade Launcher [Rating: 9] Favorites ----------- Power Ion Engine Engine Ion Engine Propulsion Aluminum Leg Treads Light Treads Leg Aluminum Leg Flight Unit Flight Unit Utility Small Storage Unit Storage Small Storage Unit Weapon Assault Rifle Ballistic Gun Assault Rifle Launcher Mini Grenade Launcher Build | -11 -10 -9 ------- Run | Yrd Mat Mat Slots Evolved 2 | . . 2 Power . | . . . Propulsion . | . . . Utility . | . . . Weapon 2 | . . 2 Parts Attached 15 | 6 6 3 Power 2 | 1 1 . Engine 2 | 1 1 . Core . | . . . Reactor . | . . . Propulsion 5 | 2 3 . Treads 2 | 2 . . Leg 2 | . 2 . Wheel . | . . . Hover . | . . . Flight 1 | . 1 . Utility 1 | 1 . . Device . | . . . Storage 1 | 1 . . Processor . | . . . Hackware . | . . . Protection . | . . . Artifact . | . . . Weapon 7 | 2 2 3 Energy Gun . | . . . Energy Cannon . | . . . Ballistic Gun 6 | 2 2 2 Ballistic Cannon . | . . . Launcher 1 | . . 1 Special Weapon . | . . . Impact Weapon . | . . . Slashing Weapon . | . . . Piercing Weapon . | . . . Special Melee Weapon . | . . . Unidentified Prototypes . | . . . Parts Lost 6 | . 4 2 Power 1 | . . 1 Propulsion 3 | . 2 1 Utility . | . . . Weapon 2 | . 2 . Highest Loss Streak 4 | . 4 2 To Critical Strikes . | . . . Average Backups 2 | 1 3 2 Power . | . 1 1 Propulsion . | . . . Utility . | . . . Weapon 1 | . 2 1 Tool/Special . | . . . Unused Backups 3 | . 1 2 Power 1 | . . 1 Propulsion . | . . . Utility . | . . . Weapon 2 | . 1 1 Tool/Special . | . . . Average Slot Usage (%) 81 | . 79 84 Engine 12 | . 14 11 Treads 11 | . 21 . Leg 11 | . 2 22 Storage 12 | . 14 11 Ballistic Gun 28 | . 26 31 Launcher 4 | . . 8 Peak Build Rating 9 | 6 6 9 Average Rating 6 | 4 5 8 On Entrance 4 | . 6 6 Avg Prop Armor Cover (%) . | . . . Naked Turns . | . . . Heaviest Build 16 | 12 12 16 Greatest Support 40 | 40 40 20 Greatest Overweight (x) 3 | 1 3 . Average Overweight (x) . | . . . Largest Inventory Capacity 8 | 8 8 8 Average Capacity 7 | 7 8 8 Most Carried 5 | 5 5 4 Average Carried 2 | 1 3 2 Final Capacity 8 | 8 8 8 Final Carried 3 | 2 3 2 Class Distribution -------------------- 62% | Mutant 37% | Gunner Dominant Class ---------------- Mutant | -10/Materials Gunner | -9/Materials Resources | -11 -10 -9 ----------- Run | Yrd Mat Mat Matter Collected 315 | 200 69 46 Remotely . | . . . Salvage Created 362 | . 211 151 Parts 31 | . 17 14 Haulers Intercepted 1 | . 1 . Recyclers Shooed 1 | . 1 . Parts Field Recycled . | . . . Retrieved Matter . | . . . Parts Self-Destructed . | . . . Prevented . | . . . Parts Restored . | . . . Kills | -11 -10 -9 ------- Run | Yrd Mat Mat Combat Hostiles Destroyed 12 | . 6 6 Guns 9 | . 6 3 AOE 3 | . . 3 Classes Destroyed 7 | . 3 4 Builder 1 | . . 1 Hauler 1 | . 1 . Operator 1 | . . 1 Swarmer 6 | . 3 3 Grunt 4 | . 3 1 Brawler 1 | . . 1 Sentry 1 | . . 1 Best Kill Streak 4 | . 3 4 Combat Bots Only 3 | . 3 3 Max Kills in Single Turn 2 | . 1 2 Gunslinging . | . . . Exploded 1 | . . 1 Melee . | . . . Uniques/NPCs Destroyed . | . . . Combat | -11 -10 -9 -------- Run | Yrd Mat Mat Hostile Shots Fired 138 | . 94 44 Missed 21 | . 14 7 Hits 117 | . 80 37 Melee 4 | . . 4 Projectile 113 | . 80 33 Damage Taken 1354 | . 744 610 Core 301 | . 174 127 Absorbed by Shields . | . . . Core Remaining (%) 65 | 100 30 . Volleys Fired 45 | . 30 15 Largest 4 | . 2 4 Hottest 90 | . 40 90 Shots Fired 106 | . 53 53 Gun 98 | . 53 45 Cannon . | . . . Launcher 8 | . . 8 Special . | . . . Kinetic 98 | . 53 45 Thermal . | . . . Explosive 8 | . . 8 Electromagnetic . | . . . Robot Hit Streak 14 | . 7 14 Robot Miss Streak 5 | . 3 5 Penetration Max . | . . . Secondary Targets 4 | . 3 1 Max Gunslinging Chain 1 | . 1 1 Shots Hit Robots 64 | . 33 31 Core Hits 25 | . 12 13 Critical Kills . | . . . Critical Parts Destroyed . | . . . Critical Strikes . | . . . Melee Attacks . | . . . Impact . | . . . Slashing . | . . . Piercing . | . . . Sneak Attacks . | . . . Combat Hostiles . | . . . Follow-up Attacks . | . . . Damage Inflicted 1076 | . 381 695 Guns 635 | . 375 260 Cannons . | . . . Explosions 429 | . . 429 Melee . | . . . Ramming 12 | . 6 6 Kinetic 635 | . 375 260 Thermal . | . . . Explosive 429 | . . 429 Electromagnetic . | . . . Impact . | . . . Slashing . | . . . Piercing . | . . . Highest Corruption . | . . . Average Corruption . | . . . Corruption Purged . | . . . Corruption Blocked . | . . . Overload Shots . | . . . Overflow Damage 37 | . . 37 Projectiles . | . . . Explosions 37 | . . 37 Melee . | . . . Knockbacks . | . . . Impact . | . . . Kinetic . | . . . Secondary . | . . . Self-Inflicted Damage 109 | . . 109 Shots 5 | . . 5 Rammed 2 | . 2 . Targets Rammed 4 | . 2 2 Kicked 2 | . . 2 Crushed . | . . . Highest Temperature 95 | . 24 95 Average Temperature 24 | . 9 29 Received Heat Transfer 351 | . 222 129 Siege Activations . | . . . Martial Activations . | . . . Shielding Activations . | . . . Robots Disrupted . | . . . Combat Hostiles . | . . . Robots Corrupted . | . . . Combat Hostiles . | . . . Parts Fried . | . . . Impact Corruptions . | . . . Robots Melted . | . . . Combat Hostiles . | . . . Parts Melted . | . . . Heat Transferred . | . . . Parts Sabotaged . | . . . Parts Stolen . | . . . Parts Stripped . | . . . Power Chain Reactions . | . . . Alert | -11 -10 -9 ------- Run | Yrd Mat Mat Maximum Alert Level . | . . . Low Security (%) 100 | 100 100 100 Level 1 . | . . . Level 2 . | . . . Level 3 . | . . . Level 4 . | . . . Level 5 . | . . . High Security . | . . . Max Security . | . . . Peak Influence 107 | . 72 107 Initial 21 | . . 21 Average 32 | . 22 52 Influence Increases 368 | . 162 206 Destroy 0b10 Robot/C 240 | . 120 120 Destroy 0b10 Robot/NC 15 | . 5 10 Destroy Leader 52 | . 22 30 Disable Machine 15 | . 15 . Destroy Structure 46 | . . 46 Influence Decreases 281 | . 110 171 Entered New Map 31 | . . 31 Time Decay 190 | . 70 120 Lost Part 60 | . 40 20 Squads Dispatched 1 | . 1 . Investigation 1 | . 1 . Extermination . | . . . Reinforcement . | . . . Assault . | . . . Garrison . | . . . Intercept . | . . . Searches Triggered . | . . . Construction Impeded . | . . . Haulers Reinforced . | . . . Active Scanning Responses . | . . . Cargo Convoy Interrupts . | . . . Stealth | -11 -10 -9 --------- Run | Yrd Mat Mat Distress Signals 5 | . 2 3 Communications Jammed . | . . . Distress Signals . | . . . Times Spotted 19 | . 8 11 Peak Tracking Total 7 | . 5 7 Tactical Retreats . | . . . Traps | -11 -10 -9 ------- Run | Yrd Mat Mat Traps Triggered 1 | . 1 . Indirectly . | . . . Trap Hack Attempts . | . . . Triggered . | . . . Disarmed . | . . . Reprogrammed . | . . . Reused . | . . . Traps Extracted . | . . . Installed . | . . . Triggered . | . . . Machines | -11 -10 -9 ---------- Run | Yrd Mat Mat Machines Disabled 1 | . 1 . Max in Single Turn 1 | . 1 . Machines Repaired . | . . . Machines Dismantled . | . . . Machines Sabotaged . | . . . Overloaded Fab Kills . | . . . Hacking | -11 -10 -9 --------- Run | Yrd Mat Mat Machines Accessed . | . . . Terminals . | . . . Fabricators . | . . . Repair Stations . | . . . Recycling Units . | . . . Scanalyzers . | . . . Garrison Access . | . . . Total Hacks . | . . . Successful . | . . . Failed . | . . . Catastrophic . | . . . Database Lockouts . | . . . Manual . | . . . Terminals . | . . . Fabricators . | . . . Repair Stations . | . . . Recycling Units . | . . . Scanalyzers . | . . . Garrison Access . | . . . Terminal Hacks . | . . . Fabricator Hacks . | . . . Repair Station Hacks . | . . . Recycling Unit Hacks . | . . . Scanalyzer . | . . . Garrison Access Hacks . | . . . Unauthorized Hacks . | . . . Terminals . | . . . Fabricators . | . . . Repair Stations . | . . . Recycling Units . | . . . Scanalyzers . | . . . Garrison Access . | . . . Data Cores Recovered 1 | . . 1 Used . | . . . Hacking Detections . | . . . Full Trace Events . | . . . Feedback Events . | . . . Feedback Blocked . | . . . Robot Schematics Acquired . | . . . Robots Built . | . . . Authchips . | . . . Time . | . . . Total Robot Build Rating . | . . . Part Schematics Acquired . | . . . Parts Built . | . . . Authchips . | . . . Time . | . . . Total Part Build Rating . | . . . Part Studies Acquired . | . . . Parts Repaired . | . . . Time . | . . . Parts Recycled . | . . . Recycled Matter . | . . . Retrieved Matter . | . . . Retrieved Components . | . . . Parts Scanalyzed . | . . . Part Schematics Acquired . | . . . Parts Damaged . | . . . Bothacking | -11 -10 -9 ------------ Run | Yrd Mat Mat Used RIF Installer . | . . . Robots Hacked . | . . . Non-combat . | . . . Combat . | . . . Robot Hacks Applied . | . . . Relay Couplers Released . | . . . Fabnet Peak Effective % . | . . . Robots Rewired . | . . . Allies Hacked . | . . . Hacks Repelled . | . . . Allies | -11 -10 -9 -------- Run | Yrd Mat Mat Total Allies . | . . . Largest Group . | . . . Highest-Rated Group . | . . . Highest-Rated Ally . | . . . Total Orders . | . . . Ally Attacks . | . . . Total Damage . | . . . Kills . | . . . Allies Corrupted . | . . . Allies Melted . | . . . Intel | -11 -10 -9 ------- Run | Yrd Mat Mat Active Infowar (turns) . | . . . Robot Analysis Total . | . . . Derelict Logs Recovered . | . . . Drone Launches . | . . . Drone Recoveries . | . . . Exploration | -11 -10 -9 ------------- Run | Yrd Mat Mat Turns Passed 593 | 86 256 251 Spaces Moved 315 | 51 100 164 Core 19 | 12 7 . Treads 116 | 39 77 . Legs 180 | . 16 164 Wheels . | . . . Hover . | . . . Flight . | . . . Fastest Speed 50 | 50 120 120 Average Speed 135 | 143 157 120 Slowest Speed 200 | 160 200 120 Overloaded Moves . | . . . Propulsion Burnouts . | . . . Robots Hopped . | . . . Potential Cave-ins . | . . . Cave-ins Triggered . | . . . Exploration Rate (%) 14 | 4 24 16 Regions Visited 2 Branch Regions . Pre-discovered Areas . | . . . Known Exits Taken . | . . . Unknown Exits Taken 2 | 1 1 . Scrap Searched . | . . . Spaces Dug . | . . . Terrain Destroyed 55 | . . 55 Melee . | . . . Projectile . | . . . AOE 55 | . . 55 Terrain Rammed . | . . . Walls Destroyed . | . . . Machines Disabled . | . . . Actions | -11 -10 -9 --------- Run | Yrd Mat Mat Total 399 | 64 148 187 Wait . | . . . Move 313 | 50 99 164 Hop . | . . . Pick Up 18 | 8 8 2 Fast Attach . | . . . Attach 13 | 6 5 2 Detach . | . . . Swap 2 | . 1 1 Drop 4 | . 3 1 Fire 45 | . 30 15 Melee . | . . . Ram . | . . . Kick 2 | . . 2 Crush 2 | . 2 . Escape Stasis . | . . . Rewire . | . . . Trap . | . . . Miscellaneous . | . . . Route ------- -11/Scrapyard -10/Materials -9/Materials History --------- Turn | Location | Event 23 | -11/Scrapyard | Discovered new exit (range 15) 87 | -11/Scrapyard | Entered Materials 285 | -10/Materials | Core integrity fell below 50% 319 | -10/Materials | Lost 4 parts (2n2w) 338 | -10/Materials | Discovered new exit (range 3) 343 | -10/Materials | Entered another Materials area 343 | -9/Materials | Evolved 2 slots: Weapon x2 346 | -9/Materials | Build established: Mutant 594 | -9/Materials | Self-destructed Last Messages --------------- 00514_ U-05 Engineer builds a Wall. 00524_ K-01 Serf collects debris. 00537_ Kicked U-05 Engineer. 00537_ K-01 Serf collects debris. 00546_ K-01 Serf cleans the Electrolysis Chamber. 00557_ Kicked K-01 Serf. 00566_ W-16 Scout sends out distress signal. 00577_ S-10 Pest destroyed. 00583_ K-01 Serf collects debris. 00585_ Acquired 11 matter. 00588_ U-05 Engineer lays Concrete. 00589_ K-01 Serf collects debris. 00590_ S-10 Pest destroyed. 00590_ Destroyed Welding Torch. 00590_ U-05 Engineer destroyed. 00590_ Destroyed Wheel. 00593_ Aluminum Leg destroyed. 00593_ Ion Engine destroyed. Map ----- +----------------------------------------------------+ | ?????????????????????????????????????????????????? | | ?????????????????????????????????????????????????? | | ?????????????????????????????????????????????????? | | ?????????????????????????????????????????????????? | | ?????????????????????????????????????????????????? | | ?????????????????????????????????????????????????? | | ?????????????????????????????????????????????????? | | ?????????????????????????????????????????????????? | | ?????????????????????????????????????????????????? | | ?????????????????????????????????????????????????? | | ?????????????????????????????????????????????????? | | ?????????????????????????????????????????????????? | | ???????????????????????????????????? ????????????? | | ?????????????????????????????????? ????????????? | | ?????????????????????????????????# #???????????? | | ?????????????????????????????#### ????????????? | | ????????????????????????????? ?????????????? | | ???????????????????????????? ??????????????? | | ????????????????????????#### ????????????????? | | ????????????????????????# # #?????????????????? | | ?????????????????????#### k#?????????????????? | | ?????????????????????# = +?????????????????? | | ?????################# =%Y #?????????????????? | | ??? g [! #?????????????????? | | ??????????#### #### * ##?????????????????? | | ?????????????# ## = @ #????????????????????? | | ?????????????# ## #????????????????????? | | ?????????????# ## #????????????????????? | | ?????????????# ## #????????????????????? | | ?????????????# ## r #????????????????????? | | ?????????????# ## t #????????????????????? | | ?????????????# ## #????????????????????? | | ?????????#####/## ## #????????????????????? | | ?????????# # ## #????????????????????? | | ?????????# # #####+#####????????????????????? | | ?????????# """ + #???# ?????????????????????????? | | ?????????# """ # #???# ?????????????????????????? | | ?????????# """ # #???# ?????????????????????????? | | ?????????# # #???# ?????????????????????????? | | ?????????######## #???# ?????????????????????????? | | ????????????????# #???#??????????????????????????? | | ????????????????# #??????????????????????????????? | | ####????/#??????# #??????????????????????????????? | | # #??????# #??????????????????????????????? | | # """" #??????# #??????????????????????????????? | | # """" #??????# #??????????????????????????????? | | # """" #??????# #??????????????????????????????? | | # #??????# #??????????????????????????????? | | # ]]! " #??????# #??????????????????????????????? | | # ]!! T #??????# #??????????????????????????????? | +----------------------------------------------------+ Best States ------------- Heat Dissipation 28 Energy Generation 10 Energy Capacity 250 Matter Stores 248 Matter Capacity 300 Sight Range 16 Terrain Scan Density 10 Evasion (%) 55 Recoil Reduction 2 Item Schematics ----------------- None Robot Schematics ------------------ None Fabricated ------------ Nothing Repaired ---------- Nothing Studied --------- None Alien Tech Used ----------------- None Achievements -------------- None Challenges ------------ None Game ------ Seed SkeletonReflectiveExtractor Manual? 0 Play Time 00:05:48 Cumulative 33.3 hours Start 2025.10.30 @ 23:06:48 End 2025.10.30 @ 23:10:48 Sessions 1 Manual Loads 0 Difficulty Rogue Special Mode None Game No. 100 Rogue 100 Adventurer 0 Explorer 0 Win Type - Total 0 Types 0/0/0/0/0/0/0/0/0/0 Lore% 22 Gallery% 26 Achievement% 22 Wizard Run 0 Options --------- Layout 1 ASCII 0 Keyboard 0 Movement Numpad Keybinds 0 Fullscreen 2 Font 24/Smallcaps Map View 50x35 Zoom Use 0% Tactical HUD 1 Map Filters NONE Filters NONE Steam 1 RUN: 528f358a-d4cb-4ea5-86be-c9cb98e67e02